bitfinex/quotes_SOLUSD_20241209
["timestamp","ask_amount","ask_price","bid_price","bid_amount"]
[1733707158788,8.40023942,234.18,234.09,12.3182]
[1733707158990,8.40023942,234.18,234.11,8.40023942]
[1733707160018,8.40023942,234.18,234.12,8.40023942]
[1733707160707,8.40023942,234.2,234.13,8.40023942]
[1733707161215,8.40023942,234.21,234.14,8.40023942]
[1733707161424,8.40023942,234.2,234.13,8.40023942]
[1733707161989,8.40023942,234.19,234.1,0.64048819]
[1733707162194,8.40023942,234.18,234.11,8.40023942]
[1733707162391,8.40023942,234.17,234.11,8.40023942]
[1733707163206,8.40023942,234.18,234.11,8.40023942]
[1733707163524,8.40023942,234.19,234.11,9.04079483]
[1733707163829,8.40023942,234.19,234.11,8.40023942]
[1733707164187,8.40023942,234.18,234.09,12.95878008]
[1733707164490,20.0,234.23,234.09,12.95878008]
[1733707164491,8.40023942,234.15,234.09,1.6386]
[1733707165231,8.40023942,234.1,234.04,13.41885118]
[1733707165408,8.40023942,234.06,234.03,1.5686]
[1733707165594,8.40023942,234.04,234.01,13.41885118]
[1733707165824,8.40023942,234.03,234.01,13.41885118]
[1733707166019,8.40023942,234.02,234.0,13.41885118]
[1733707166326,8.40023942,234.01,233.98,13.41885118]
[1733707166496,8.40023942,234.0,233.97,13.41885118]
[1733707166696,8.40023942,234.0,233.96,1.5686]
[1733707167026,8.40023942,234.01,233.96,1.5686]
[1733707168030,23.776884,234.09,233.97,8.40023942]
[1733707168241,8.40023942,234.06,233.99,8.40023942]
[1733707169025,20.0,234.15,234.02,8.40023942]
[1733707169228,1.6459,234.17,234.05,8.40023942]
[1733707169398,8.40023942,234.12,234.06,8.40023942]
[1733707169599,8.40023942,234.12,234.05,8.40023942]
[1733707171115,8.40023942,234.1,234.03,8.40023942]
[1733707171396,20.0,234.15,234.03,13.14797695]
[1733707171397,13.14797695,234.09,234.03,13.14797695]
[1733707171622,13.14797695,234.12,234.05,13.14797695]
[1733707171798,13.14797695,234.11,234.05,13.14797695]
[1733707172709,13.14797695,234.13,234.06,13.78875317]
[1733707172927,13.14797695,234.14,234.06,13.78875317]
[1733707173228,13.14797695,234.13,234.06,13.14797695]
[1733707173415,13.14797695,234.12,234.06,13.14797695]
[1733707174232,13.14797695,234.08,234.01,13.41885118]
[1733707174409,23.776884,234.11,233.98,13.41885118]
[1733707174410,13.14797695,234.06,233.98,13.41885118]
[1733707174739,23.776884,234.11,233.99,13.14797695]
[1733707174740,13.14797695,234.05,233.99,13.14797695]
[1733707175103,23.776884,234.11,233.96,12.254]
[1733707175104,13.14797695,234.03,233.96,14.71657695]
[1733707175332,13.14797695,234.02,233.96,14.71657695]
[1733707175704,13.14797695,234.03,233.96,14.71657695]
[1733707176617,13.14797695,234.0,233.93,13.63271785]
[1733707179226,13.14797695,233.99,233.93,0.4847409]
[1733707180136,13.14797695,233.98,233.93,0.4847409]
[1733707180347,13.14797695,233.97,233.93,0.4847409]
[1733707181444,23.776884,234.02,233.93,0.4847409]
[1733707181445,13.14797695,233.95,233.93,0.4847409]
[1733707181618,23.776884,233.94,233.93,0.4847409]
[1733707182140,36.92486095,233.94,233.93,0.4847409]
[1733707186153,45.08726095,233.94,233.93,0.4847409]
[1733707186440,45.08726095,233.94,233.78,14.69947695]
[1733707186441,23.776884,233.9,233.78,1.5515]
[1733707186611,13.14797695,233.84,233.78,1.5515]
[1733707188042,13.14797695,233.83,233.78,1.5515]
[1733707188637,13.14797695,233.82,233.78,1.5515]
[1733707189034,13.14797695,233.8,233.74,13.14797695]
[1733707190146,13.14797695,233.88,233.72,1.5263]
[1733707190147,13.14797695,233.76,233.72,1.5263]
[1733707190350,13.14797695,233.77,233.72,1.5263]
[1733707190639,13.14797695,233.78,233.72,1.5263]
[1733707191342,5.0,233.87,233.72,1.5263]
[1733707191343,13.14797695,233.77,233.72,1.5263]
[1733707192046,13.14797695,233.78,233.72,1.5263]
[1733707192355,6.69457595,233.91,233.72,1.5263]
[1733707192356,13.14797695,233.84,233.77,13.14797695]
[1733707192535,13.14797695,233.88,233.81,13.14797695]
[1733707192727,13.14797695,233.89,233.82,13.14797695]
[1733707193245,13.14797695,233.86,233.8,13.14797695]
[1733707193972,13.14797695,233.87,233.81,13.14797695]
[1733707194854,13.14797695,233.87,233.8,13.14797695]
[1733707197072,23.776884,233.93,233.77,0.6414724]
[1733707197073,13.14797695,233.86,233.79,13.14797695]
[1733707197232,13.14797695,233.85,233.79,13.14797695]
[1733707199467,13.14797695,233.85,233.78,13.14797695]
[1733707200475,23.776884,233.93,233.74,13.14797695]
[1733707200476,13.14797695,233.8,233.74,13.14797695]
[1733707201376,13.14797695,233.86,233.79,13.14797695]
[1733707201946,13.14797695,233.85,233.78,13.14797695]
[1733707202170,13.14797695,233.84,233.77,13.14797695]
[1733707202779,13.14797695,233.83,233.77,13.14797695]
[1733707203080,20.0,233.9,233.75,13.14797695]
[1733707203081,13.14797695,233.82,233.75,13.14797695]
[1733707203283,13.14797695,233.88,233.73,10.6961]
[1733707203284,13.14797695,233.8,233.73,23.84407695]
[1733707203466,13.14797695,233.88,233.71,6.97939601]
[1733707203467,13.14797695,233.78,233.72,14.67427695]
[1733707203777,13.14797695,233.78,233.72,1.5263]
[1733707203944,13.14797695,233.88,233.72,1.5263]
[1733707203945,13.14797695,233.83,233.76,13.14797695]
[1733707204145,20.0,233.9,233.72,12.86435664]
[1733707204346,13.14797695,233.84,233.77,13.14797695]
[1733707204780,13.14797695,233.83,233.76,13.14797695]
[1733707204961,13.14797695,233.82,233.75,13.14797695]
[1733707205945,13.14797695,233.79,233.72,25.37067695]
[1733707206152,13.14797695,233.78,233.72,12.2227]
[1733707206986,13.14797695,233.79,233.72,25.37067695]
[1733707207588,13.14797695,233.8,233.74,13.14797695]
[1733707208555,13.14797695,233.81,233.74,13.14797695]
[1733707208747,20.0,233.91,233.77,13.14797695]
[1733707208946,9.231,233.94,233.81,13.14797695]
[1733707208947,13.14797695,233.88,233.81,13.14797695]
[1733707209150,13.14797695,233.88,233.82,13.14797695]
[1733707210594,13.14797695,234.0,233.85,13.14797695]
[1733707210595,13.14797695,233.92,233.85,13.14797695]
[1733707210749,13.14797695,233.95,233.88,13.14797695]
[1733707210951,13.14797695,233.96,233.89,13.14797695]
[1733707212151,13.14797695,233.95,233.88,13.14797695]
[1733707212861,9.0837,234.06,233.93,13.14797695]
[1733707212862,13.14797695,234.0,233.93,13.14797695]
[1733707213072,13.14797695,234.01,233.94,13.14797695]
[1733707214152,13.14797695,234.02,233.95,13.14797695]
[1733707214355,2.5986,234.11,233.93,2.14394259]
[1733707214356,13.14797695,234.06,233.99,13.14797695]
[1733707214589,1.5307,234.11,234.0,13.14797695]
[1733707214767,13.14797695,234.07,234.0,13.14797695]
[1733707215300,13.14797695,234.08,234.01,13.14797695]
[1733707215457,13.14797695,234.08,234.02,13.14797695]
[1733707216282,13.14797695,234.06,233.99,13.14797695]
[1733707216496,13.14797695,234.04,233.97,13.14797695]
[1733707216887,13.14797695,234.05,233.99,13.14797695]
[1733707217165,13.14797695,234.07,234.01,13.14797695]
[1733707217362,10.0,234.19,234.05,13.14797695]
[1733707217363,1.0675,234.19,234.05,13.14797695]
[1733707217598,13.14797695,234.13,234.06,13.14797695]
[1733707218383,13.14797695,234.14,234.07,13.14797695]
[1733707218671,13.14797695,234.15,234.07,13.14797695]
[1733707218887,13.14797695,234.12,234.05,33.14797695]
[1733707219195,13.14797695,234.13,234.06,13.14797695]
[1733707220002,13.14797695,234.15,234.08,13.14797695]
[1733707220295,13.14797695,234.16,234.09,13.14797695]
[1733707221061,13.14797695,234.14,234.07,13.14797695]
[1733707221282,13.14797695,234.14,234.03,0.64065948]
[1733707221283,13.14797695,234.12,234.05,13.14797695]
[1733707221894,13.14797695,234.09,234.02,19.58877695]
[1733707222287,13.14797695,234.13,234.06,13.14797695]
[1733707222474,13.14797695,234.14,234.07,13.14797695]
[1733707223096,13.14797695,234.16,234.1,13.14797695]
[1733707223286,13.14797695,234.19,234.12,13.14797695]
[1733707223484,8.3064,234.3,234.15,13.14797695]
[1733707223695,13.14797695,234.23,234.16,13.14797695]
[1733707224299,13.14797695,234.24,234.17,13.14797695]
[1733707224902,13.14797695,234.23,234.16,13.14797695]
[1733707225272,13.14797695,234.22,234.16,13.14797695]
[1733707225674,13.14797695,234.22,234.15,13.14797695]
[1733707225988,13.14797695,234.19,234.12,20.74877695]
[1733707227313,13.14797695,234.13,234.02,10.6828]
[1733707227513,13.14797695,234.08,234.01,13.14797695]
[1733707228061,13.14797695,234.06,233.99,13.14797695]
[1733707229086,13.14797695,234.06,234.0,13.14797695]
[1733707229302,21.04323207,234.07,234.0,21.04323207]
[1733707229509,21.04323207,234.11,234.04,21.04323207]
[1733707231088,21.04323207,234.12,234.05,21.04323207]
[1733707231293,21.04323207,234.15,234.08,21.04323207]
[1733707231480,21.04323207,234.17,234.09,21.68384528]
[1733707231880,21.04323207,234.24,234.09,21.68384528]
[1733707231881,21.04323207,234.16,234.09,21.04323207]
[1733707233007,21.04323207,234.16,234.1,21.04323207]
[1733707233316,21.04323207,234.16,234.06,7.26931384]
[1733707233489,21.04323207,234.14,234.07,21.04323207]
[1733707233687,21.04323207,234.15,234.08,21.04323207]
[1733707233884,21.04323207,234.18,234.11,21.04323207]
[1733707234195,8.1674,234.27,234.15,21.04323207]
[1733707234196,21.04323207,234.22,234.15,21.04323207]
[1733707234582,21.04323207,234.21,234.14,21.04323207]
[1733707237855,21.04323207,234.22,234.15,21.04323207]
[1733707238161,21.04323207,234.23,234.16,0.64044691]
[1733707238344,21.04323207,234.25,234.18,21.04323207]
[1733707238926,21.04323207,234.24,234.17,21.04323207]
[1733707239335,21.04323207,234.23,234.16,21.04323207]
[1733707239536,21.04323207,234.19,234.12,21.04323207]
[1733707240163,21.04323207,234.18,234.11,21.04323207]
[1733707240739,21.04323207,234.2,234.13,21.04323207]
[1733707240936,21.04323207,234.22,234.15,21.04323207]
[1733707241133,21.04323207,234.25,234.18,21.04323207]
[1733707241560,21.04323207,234.24,234.17,21.04323207]
[1733707241867,21.04323207,234.24,234.16,23.32053448]
[1733707242251,21.04323207,234.24,234.17,21.04323207]
[1733707242461,21.04323207,234.25,234.18,21.68357612]
[1733707242653,21.04323207,234.27,234.2,21.04323207]
[1733707243100,21.04323207,234.29,234.22,21.04323207]
[1733707243489,21.04323207,234.29,234.23,21.68348075]
[1733707243636,21.04323207,234.3,234.23,21.68348075]
[1733707243943,21.04323207,234.32,234.25,21.04323207]
[1733707244146,21.04323207,234.31,234.24,21.04323207]
[1733707244553,7.6934,234.37,234.23,0.64024868]
[1733707244554,21.04323207,234.3,234.23,21.68342034]
[1733707245449,21.04323207,234.31,234.24,21.04323207]
[1733707245876,21.04323207,234.32,234.26,21.04323207]
[1733707246072,21.04323207,234.34,234.27,21.68335338]
[1733707246279,6.1362,234.42,234.27,21.68335338]
[1733707246280,21.04323207,234.37,234.3,21.04323207]
[1733707246440,21.04323207,234.37,234.31,0.64002944]
[1733707246773,21.04323207,234.37,234.3,21.04323207]
[1733707247157,21.04323207,234.38,234.31,21.68326138]
[1733707247493,21.04323207,234.32,234.31,0.64002931]
[1733707247777,21.04323207,234.32,234.2,30.6743]
[1733707247778,21.04323207,234.32,234.24,21.04323207]
[1733707247947,21.04323207,234.32,234.25,21.04323207]
[1733707248154,21.04323207,234.34,234.27,21.04323207]
[1733707248668,21.04323207,234.34,234.23,12.3287]
[1733707248669,21.04323207,234.3,234.23,22.69883207]
[1733707248980,21.04323207,234.29,234.23,1.6556]
[1733707249158,21.04323207,234.28,234.23,1.6556]
[1733707249359,21.04323207,234.3,234.23,22.69883207]
[1733707249874,21.04323207,234.29,234.23,22.69883207]
[1733707250245,21.04323207,234.3,234.23,22.69883207]
[1733707251270,21.04323207,234.28,234.23,1.6556]
[1733707251476,21.04323207,234.27,234.23,1.6556]
[1733707251681,21.04323207,234.26,234.19,21.04323207]
[1733707251853,21.04323207,234.27,234.2,21.04323207]
[1733707252460,21.04323207,234.28,234.22,21.04323207]
[1733707253759,21.04323207,234.28,234.21,21.04323207]
[1733707254067,21.04323207,234.26,234.2,21.04323207]
[1733707254484,21.04323207,234.24,234.17,29.03183207]
[1733707254667,21.04323207,234.22,234.14,21.04323207]
[1733707254873,21.04323207,234.24,234.16,21.04323207]
[1733707255073,21.04323207,234.24,234.16,21.68361002]
[1733707255290,21.04323207,234.24,234.17,21.04323207]
[1733707256196,21.04323207,234.24,234.16,0.64037795]
[1733707256197,21.04323207,234.25,234.18,21.04323207]
[1733707257188,21.04323207,234.26,234.19,21.04323207]
[1733707257701,1.6149,234.31,234.18,21.04323207]
[1733707257702,21.04323207,234.25,234.18,21.04323207]
[1733707259697,21.04323207,234.24,234.17,21.04323207]
[1733707259901,21.04323207,234.21,234.15,20.0]
[1733707260084,21.04323207,234.19,234.13,1.5413]
[1733707260285,21.04323207,234.18,234.13,1.5413]
[1733707261808,21.04323207,234.22,234.15,21.04323207]
[1733707262602,21.04323207,234.2,234.13,22.58453207]
[1733707262802,1.6149,234.31,234.13,1.5413]
[1733707262803,21.04323207,234.18,234.13,1.5413]
[1733707263690,21.04323207,234.24,234.09,20.0]
[1733707263691,21.04323207,234.16,234.09,20.0]
[1733707263890,21.04323207,234.16,234.08,21.04323207]
[1733707264078,21.04323207,234.15,234.08,21.04323207]
[1733707264282,22.11043207,234.24,234.07,22.55313207]
[1733707264283,21.04323207,234.14,234.07,22.55313207]
[1733707266677,21.04323207,234.13,234.07,1.5099]
[1733707268885,21.04323207,234.18,234.11,21.04323207]
[1733707269420,13.14031128,234.15,234.08,13.14031128]
[1733707269586,13.14031128,234.15,234.09,13.14031128]
[1733707269787,13.14031128,234.19,234.12,13.14031128]
[1733707270227,13.14031128,234.16,234.1,13.14031128]
[1733707270385,13.14031128,234.14,234.07,14.65021128]
[1733707270591,13.14031128,234.14,234.08,13.14031128]
[1733707270791,13.14031128,234.15,234.08,13.14031128]
[1733707271015,13.14031128,234.16,234.09,13.14031128]
[1733707271218,13.14031128,234.18,234.12,13.14031128]
[1733707271412,13.14031128,234.19,234.12,13.14031128]
[1733707271727,13.14031128,234.16,234.09,13.14031128]
[1733707272393,13.14031128,234.15,234.09,13.14031128]
[1733707272597,13.14031128,234.16,234.09,13.14031128]
[1733707272802,13.14031128,234.17,234.1,13.14031128]
[1733707273096,13.14031128,234.16,234.09,13.14031128]
[1733707274016,13.14031128,234.17,234.1,13.14031128]
[1733707274209,13.14031128,234.18,234.11,13.14031128]
[1733707274412,13.14031128,234.16,234.09,13.14031128]
[1733707274623,13.14031128,234.15,234.08,13.14031128]
[1733707275214,1.5987,234.22,234.07,1.5099]
[1733707275215,13.14031128,234.16,234.09,13.14031128]
[1733707275414,13.14031128,234.16,234.1,13.14031128]
[1733707275729,13.14031128,234.17,234.1,13.14031128]
[1733707276022,13.14031128,234.19,234.12,13.14031128]
[1733707276399,13.14031128,234.17,234.1,13.14031128]
[1733707276594,13.14031128,234.16,234.09,13.14031128]
[1733707276811,13.14031128,234.17,234.11,13.14031128]
[1733707277710,13.14031128,234.18,234.11,13.14031128]
[1733707278026,20.0,234.21,234.14,13.14031128]
[1733707278027,13.14031128,234.21,234.14,13.14031128]
[1733707278321,13.14031128,234.25,234.18,13.14031128]
[1733707279311,13.14031128,234.26,234.19,13.14031128]
[1733707280020,2.681,234.33,234.22,13.14031128]
[1733707280021,1.6141,234.33,234.22,13.14031128]
[1733707280335,13.14031128,234.3,234.23,13.14031128]
[1733707280704,13.14031128,234.31,234.24,13.14031128]
[1733707280998,13.14031128,234.34,234.27,13.14031128]
[1733707281215,13.14031128,234.32,234.25,13.14031128]
[1733707281411,6.0332,234.37,234.26,13.14031128]
[1733707281412,13.14031128,234.33,234.26,13.14031128]
[1733707281611,13.14031128,234.33,234.22,0.6401619]
[1733707281612,13.14031128,234.32,234.25,13.14031128]
[1733707281817,13.14031128,234.31,234.25,13.14031128]
[1733707282216,6.0332,234.37,234.26,13.14031128]
[1733707282217,13.14031128,234.33,234.26,13.14031128]
[1733707283409,1.6355,234.39,234.26,13.14031128]
[1733707283410,13.14031128,234.35,234.28,13.14031128]
[1733707283726,13.14031128,234.38,234.31,13.14031128]
[1733707284699,13.14031128,234.37,234.3,13.14031128]
[1733707284900,13.14031128,234.35,234.28,13.14031128]
[1733707285603,13.14031128,234.32,234.26,20.92521128]
[1733707285836,13.14031128,234.28,234.21,13.14031128]
[1733707286030,13.14031128,234.26,234.2,8.0026]
[1733707286237,13.14031128,234.27,234.2,21.14291128]
[1733707286416,13.14031128,234.28,234.21,13.14031128]
[1733707286826,13.14031128,234.27,234.2,21.14291128]
[1733707287125,13.14031128,234.23,234.16,13.14031128]
[1733707287727,13.14031128,234.24,234.17,13.14031128]
[1733707288155,13.14031128,234.24,234.14,8.1131]
[1733707288156,13.14031128,234.25,234.18,13.14031128]
[1733707288319,13.14031128,234.25,234.14,8.75351323]
[1733707288320,13.14031128,234.26,234.19,13.14031128]
[1733707288528,13.14031128,234.25,234.18,13.14031128]
[1733707288702,13.14031128,234.26,234.19,13.14031128]
[1733707288906,13.14031128,234.25,234.18,13.14031128]
[1733707289512,13.14031128,234.26,234.19,13.14031128]
[1733707290341,13.14031128,234.25,234.18,13.14031128]
[1733707291232,13.14031128,234.26,234.19,13.14031128]
[1733707292059,1.0668,234.34,234.15,0.6403434]
[1733707292060,13.14031128,234.24,234.18,13.14031128]
[1733707292272,13.14031128,234.2,234.14,8.1131]
[1733707292983,13.14031128,234.2,234.14,1.6391]
[1733707293651,13.14031128,234.2,234.14,14.77941128]
[1733707293969,13.14031128,234.21,234.14,14.77941128]
[1733707294758,13.14031128,234.23,234.16,13.14031128]
[1733707295066,13.14031128,234.21,234.14,14.77941128]
[1733707295273,13.14031128,234.19,234.12,13.14031128]
[1733707295581,13.14031128,234.21,234.14,13.14031128]
[1733707296647,24.843884,234.29,234.12,13.14031128]
[1733707296648,13.14031128,234.19,234.12,13.14031128]
[1733707296849,13.14031128,234.18,234.11,13.14031128]
[1733707298141,13.14031128,234.19,234.12,13.14031128]
[1733707298341,13.14031128,234.2,234.13,13.14031128]
[1733707298780,13.14031128,234.19,234.12,13.14031128]
[1733707299576,13.14031128,234.2,234.13,13.14031128]
[1733707299971,13.14031128,234.23,234.16,13.14031128]
[1733707300563,13.14031128,234.24,234.17,13.14031128]
[1733707300891,6.6205,234.3,234.13,0.64056081]
[1733707300892,13.14031128,234.23,234.16,13.14031128]
[1733707304685,13.14031128,234.23,234.13,0.64056081]
[1733707304686,13.14031128,234.22,234.14,13.14031128]
[1733707305888,13.14031128,234.21,234.14,13.14031128]
[1733707307687,13.14031128,234.19,234.12,13.14031128]
[1733707307991,23.776884,234.29,234.1,0.6404592]
[1733707307992,13.14031128,234.18,234.1,13.14031128]
[1733707309383,13.14031128,234.17,234.1,13.14031128]
[1733707309691,13.14031128,234.17,234.05,25.64242494]
[1733707309692,20.0,234.08,234.04,13.20961597]
[1733707309898,23.776884,234.14,233.95,13.20961597]
[1733707309899,20.0,234.02,233.95,13.20961597]
[1733707310059,13.14031128,233.96,233.9,13.20961597]
[1733707310264,13.14031128,233.94,233.88,26.41923194]
[1733707310570,13.14031128,233.94,233.87,13.20961597]
[1733707310571,13.14031128,233.94,233.87,13.14031128]
[1733707311305,13.14031128,234.0,233.82,21.07016664]
[1733707311306,21.07016664,233.92,233.82,21.07016664]
[1733707311500,21.07016664,233.9,233.82,21.07016664]
[1733707313169,21.07016664,233.92,233.84,21.07016664]
[1733707314791,21.07016664,233.91,233.84,21.07016664]
[1733707315491,21.07016664,233.94,233.87,21.07016664]
[1733707316614,21.07016664,233.91,233.84,41.07016664]
[1733707316906,21.07016664,233.92,233.85,21.07016664]
[1733707317117,21.07016664,233.93,233.86,21.07016664]
[1733707320408,21.07016664,233.92,233.85,21.07016664]
[1733707320917,21.07016664,233.97,233.9,21.07016664]
[1733707321410,21.07016664,234.0,233.94,21.07016664]
[1733707321785,21.07016664,234.0,233.93,21.07016664]
[1733707321979,21.07016664,233.99,233.92,21.07016664]
[1733707323814,21.07016664,234.0,233.94,21.07016664]
[1733707324230,7.529,234.07,233.95,21.07016664]
[1733707324231,21.07016664,234.02,233.95,21.07016664]
[1733707324514,21.07016664,234.12,233.99,21.07016664]
[1733707324515,21.07016664,234.06,233.99,21.07016664]
[1733707324722,21.07016664,234.05,233.98,21.07016664]
[1733707324885,21.07016664,234.04,233.97,21.07016664]
[1733707325089,6.4881,234.19,234.03,21.07016664]
[1733707325311,6.4881,234.19,234.06,21.07016664]
[1733707325312,21.07016664,234.13,234.06,21.07016664]
[1733707325485,21.07016664,234.11,234.04,21.71091387]
[1733707325818,21.07016664,234.1,234.02,21.07016664]
[1733707326506,21.07016664,234.12,234.04,21.07016664]
[1733707327713,21.07016664,234.11,234.04,21.07016664]
[1733707328095,21.07016664,234.09,234.02,21.07016664]
[1733707328290,21.07016664,234.07,234.01,20.0]
[1733707329021,21.07016664,234.08,234.01,41.07016664]
[1733707330037,21.07016664,234.09,234.02,21.07016664]
[1733707330829,21.07016664,234.11,234.04,21.07016664]
[1733707331035,21.07016664,234.14,234.07,21.07016664]
[1733707331208,13.14409574,234.14,234.07,13.14409574]
[1733707332036,13.14409574,234.1,234.03,13.14409574]
[1733707332205,13.14409574,234.09,234.02,23.82669574]
[1733707332408,13.14409574,234.08,234.0,13.14409574]
[1733707332625,13.14409574,234.09,234.02,13.14409574]
[1733707332928,13.14409574,234.11,234.04,13.14409574]
[1733707333144,13.14409574,234.11,233.94,28.776884]
[1733707333145,23.776884,233.97,233.81,13.20961597]
[1733707333302,23.776884,233.97,233.79,13.78552268]
[1733707333303,13.14409574,233.87,233.79,13.78552268]
[1733707333501,13.14409574,233.87,233.8,0.09022627]
[1733707333699,20.0,233.94,233.8,0.09022627]
[1733707333700,13.14409574,233.85,233.8,0.09022627]
[1733707334133,13.78582827,233.84,233.8,0.09022627]
[1733707335232,20.0,233.94,233.79,21.08366467]
[1733707335233,21.08366467,233.87,233.79,21.08366467]
[1733707336040,0.64173253,233.86,233.79,21.08366467]
[1733707336332,21.08366467,233.84,233.76,21.08366467]
[1733707337020,21.08366467,233.85,233.77,21.08366467]
[1733707338839,21.08366467,233.88,233.8,21.08366467]
[1733707339207,21.7253972,233.87,233.79,21.08366467]
[1733707339413,21.08366467,233.87,233.8,21.08366467]
[1733707339710,21.08366467,233.88,233.81,21.08366467]
[1733707339905,21.08366467,233.9,233.83,21.08366467]
[1733707340109,21.08366467,233.9,233.76,21.08366467]
[1733707340110,21.08366467,233.93,233.86,21.08366467]
[1733707340316,0.64173253,233.92,233.86,21.08366467]
[1733707340517,21.08366467,233.96,233.89,21.08366467]
[1733707340763,21.08366467,233.97,233.9,21.08366467]
[1733707340934,21.08366467,233.98,233.91,21.08366467]
[1733707342106,21.08366467,233.99,233.92,21.08366467]
[1733707342535,0.64173253,234.06,233.96,21.08366467]
[1733707342536,21.08366467,234.03,233.96,21.08366467]
[1733707342810,21.08366467,234.04,233.97,21.08366467]
[1733707343417,21.7253972,234.03,233.96,21.08366467]
[1733707344139,21.08366467,234.04,233.97,21.08366467]
[1733707344341,21.08366467,234.06,233.99,21.08366467]
[1733707344507,21.08366467,234.07,234.0,21.08366467]
[1733707345114,21.08366467,234.08,234.01,21.08366467]
[1733707345635,21.08366467,234.09,234.02,21.08366467]
[1733707345838,21.08366467,234.08,234.02,21.08366467]
[1733707346015,21.08366467,234.08,234.01,21.08366467]
[1733707347715,21.08366467,234.07,234.0,21.08366467]
[1733707347931,21.08366467,234.02,233.95,21.08366467]
[1733707348133,21.08366467,234.01,233.94,31.76996467]
[1733707348339,21.08366467,233.99,233.92,21.08366467]
[1733707348546,21.08366467,233.98,233.91,21.08366467]
[1733707348818,21.08366467,234.0,233.93,21.08366467]
[1733707350028,0.64173253,234.1,233.97,21.08366467]
[1733707350029,21.08366467,234.04,233.97,21.08366467]
[1733707350226,21.08366467,234.06,233.99,21.08366467]
[1733707350849,21.08366467,234.08,234.01,21.08366467]
[1733707351054,21.08366467,234.07,234.0,21.08366467]
[1733707352026,21.08366467,234.06,233.99,21.08366467]
[1733707352255,21.08366467,234.07,234.0,21.08366467]
[1733707354233,0.64173253,234.12,233.97,21.08366467]
[1733707354234,21.08366467,234.04,233.97,21.08366467]
[1733707354558,21.08366467,234.04,233.95,10.6857]
[1733707354559,21.08366467,234.02,233.95,31.76936467]
[1733707354859,21.08366467,234.01,233.94,21.08366467]
[1733707355032,21.08366467,234.02,233.95,21.08366467]
[1733707355240,21.08366467,234.02,233.91,11.32848214]
[1733707355241,21.08366467,234.03,233.96,21.08366467]
[1733707355786,21.08366467,234.04,233.97,21.08366467]
[1733707355960,21.08366467,234.04,233.96,21.08366467]
[1733707356525,21.08366467,234.0,233.93,21.08366467]
[1733707357127,21.08366467,234.01,233.94,21.08366467]
[1733707357548,21.08366467,234.03,233.96,21.08366467]
[1733707357842,21.08366467,234.03,233.92,0.64103344]
[1733707357843,21.08366467,234.04,233.97,21.08366467]
[1733707358148,0.64173253,234.11,233.92,0.64103344]
[1733707358149,21.08366467,234.09,234.02,21.08366467]
[1733707358324,21.08366467,234.11,234.04,21.08366467]
[1733707358527,21.08366467,234.09,234.01,21.08366467]
[1733707359036,21.08366467,234.09,234.02,21.08366467]
[1733707359237,21.08366467,234.11,234.04,21.08366467]
[1733707360458,21.08366467,234.12,234.04,21.08366467]
[1733707360788,21.08366467,234.12,234.05,21.08366467]
[1733707361461,21.08366467,234.09,234.02,21.08366467]
[1733707361665,21.08366467,234.07,234.0,21.08366467]
[1733707361968,21.08366467,234.05,233.97,31.76846467]
[1733707362338,21.08366467,234.06,233.99,21.08366467]
[1733707362549,21.08366467,234.07,234.0,21.08366467]
[1733707362948,21.08366467,234.06,233.99,21.08366467]
[1733707363644,21.08366467,234.07,234.0,21.08366467]
[1733707364639,21.08366467,234.07,233.99,21.08366467]
[1733707364941,2.6698,234.16,234.0,21.08366467]
[1733707364942,21.08366467,234.08,234.0,21.08366467]
[1733707365145,21.08366467,234.09,234.02,21.08366467]
[1733707365368,21.08366467,234.1,234.03,21.08366467]
[1733707365563,21.08366467,234.09,234.02,21.08366467]
[1733707365935,21.08366467,234.09,234.01,21.08366467]
[1733707366866,21.08366467,234.06,233.99,21.08366467]
[1733707368091,21.08366467,234.07,234.0,21.08366467]
[1733707368794,0.64173253,234.13,234.02,21.08366467]
[1733707368795,21.08366467,234.1,234.02,21.08366467]
[1733707369105,21.08366467,234.1,234.03,21.08366467]
[1733707369302,21.08366467,234.09,234.01,41.08366467]
[1733707369612,21.08366467,234.09,234.01,21.08366467]
[1733707370100,21.08366467,234.08,234.01,21.08366467]
[1733707371174,21.08366467,234.09,234.01,21.08366467]
[1733707372106,21.08366467,234.08,234.01,21.08366467]
[1733707373316,21.08366467,234.09,234.01,21.08366467]
[1733707373976,21.08366467,234.1,234.02,21.08366467]
[1733707374304,21.08366467,234.15,234.07,21.08366467]
[1733707374700,21.08366467,234.15,234.04,0.64066054]
[1733707374701,22.68586467,234.16,234.08,21.08366467]
[1733707374899,21.08366467,234.16,234.09,21.08366467]
[1733707375612,21.08366467,234.15,234.07,21.08366467]
[1733707376324,21.08366467,234.14,234.07,21.08366467]
[1733707376712,21.08366467,234.13,234.07,20.0]
[1733707376920,21.08366467,234.12,234.05,21.08366467]
[1733707377496,21.08366467,234.13,234.06,21.08366467]
[1733707377709,0.64173253,234.18,234.07,21.08366467]
[1733707377710,21.08366467,234.14,234.07,21.08366467]
[1733707378613,21.08366467,234.13,234.06,21.08366467]